bitfinex/quotes_SOLUSD_20240624
["timestamp","ask_amount","ask_price","bid_price","bid_amount"]
[1719257532891,0.34,128.39,128.29,27.2811]
[1719257533577,30.10661425,128.42,128.3,45.0]
[1719257533578,2.54661425,128.42,128.3,45.0]
[1719257533778,14.53777878,128.44,128.33,7.7922]
[1719257533779,22.32397878,128.44,128.33,7.7922]
[1719257534004,7.7869,128.42,128.33,19.4801]
[1719257534174,7.7863,128.43,128.33,19.4801]
[1719257534993,7.7892,128.39,128.3,45.0]
[1719257535197,0.17,128.38,128.3,45.0]
[1719257535397,0.34,128.38,128.3,45.0]
[1719257535582,8.1295,128.38,128.28,7.7953]
[1719257535905,0.34,128.38,128.28,7.795]
[1719257536084,0.34,128.38,128.29,7.7946]
[1719257536805,0.17,128.38,128.26,38.9806]
[1719257537022,2.54661425,128.43,128.27,65.34]
[1719257537183,14.57607048,128.45,128.35,7.791]
[1719257537184,22.36157048,128.45,128.35,7.791]
[1719257537382,7.7857,128.44,128.34,7.7916]
[1719257537891,14.57607048,128.45,128.32,7.7927]
[1719257538089,7.7863,128.44,128.33,45.0]
[1719257538295,7.7863,128.43,128.33,52.7919]
[1719257538887,0.17,128.42,128.33,52.7919]
[1719257539305,14.57607048,128.45,128.35,7.7908]
[1719257539508,14.57607048,128.45,128.34,19.4785]
[1719257539707,14.57607048,128.45,128.35,45.0]
[1719257539925,2.54661425,128.46,128.37,7.7897]
[1719257540090,10.33121425,128.46,128.36,27.2661]
[1719257540292,2.54661425,128.46,128.36,19.4757]
[1719257540485,7.787,128.42,128.31,285.50422225]
[1719257540685,7.787,128.42,128.32,7.7928]
[1719257540993,7.7852,128.45,128.35,7.7911]
[1719257541189,10.33131425,128.46,128.36,7.7904]
[1719257541395,0.17,128.45,128.35,27.2684]
[1719257541806,2.54661425,128.46,128.37,7.7899]
[1719257542114,6.50407633,128.47,128.38,7.7893]
[1719257542411,8.05624488,128.48,128.34,19.4782]
[1719257542619,8.05624488,128.48,128.32,38.9631]
[1719257542805,8.05624488,128.48,128.33,45.0]
[1719257543013,8.05624488,128.48,128.33,64.4796]
[1719257543014,7.7863,128.44,128.33,64.4796]
[1719257543187,7.7864,128.43,128.33,19.4796]
[1719257543387,19.462,128.46,128.31,277.71112225]
[1719257543600,7.7876,128.41,128.31,285.50432225]
[1719257543793,0.34,128.4,128.31,277.71112225]
[1719257544094,0.17,128.4,128.32,19.4822]
[1719257544294,0.17,128.4,128.32,27.2751]
[1719257544604,0.34,128.41,128.32,7.793]
[1719257544800,0.34,128.41,128.33,7.7919]
[1719257545024,0.34,128.41,128.31,21.794]
[1719257545193,0.34,128.41,128.33,27.2726]
[1719257545393,0.34,128.41,128.33,19.4807]
[1719257545816,0.34,128.41,128.34,45.0]
[1719257546320,2.54661425,128.45,128.35,19.4773]
[1719257546501,0.17,128.44,128.36,52.7904]
[1719257546898,0.17,128.44,128.37,19.4746]
[1719257547099,0.17,128.44,128.36,45.0]
[1719257547320,0.17,128.44,128.35,45.0]
[1719257547719,0.34,128.44,128.35,45.0]
[1719257548118,0.34,128.44,128.31,41.2771]
[1719257548298,7.787,128.42,128.32,7.7926]
[1719257548615,45.34,128.41,128.32,7.7929]
[1719257548795,45.34,128.41,128.34,7.7917]
[1719257548796,0.34,128.41,128.34,7.7917]
[1719257548996,0.34,128.41,128.33,27.2726]
[1719257549401,0.34,128.41,128.33,19.4806]
[1719257549617,0.34,128.41,128.33,27.2726]
[1719257550038,0.34,128.42,128.33,27.2726]
[1719257550322,0.34,128.41,128.32,7.7929]
[1719257550498,45.34,128.43,128.33,7.7923]
[1719257550699,0.17,128.43,128.34,7.7916]
[1719257550899,0.17,128.43,128.34,52.7916]
[1719257551099,0.17,128.43,128.33,7.7919]
[1719257551301,0.17,128.43,128.34,7.7918]
[1719257552120,0.34,128.43,128.35,7.7911]
[1719257552720,0.34,128.43,128.34,27.2708]
[1719257553042,0.17,128.43,128.35,52.7911]
[1719257553320,15.84717552,128.45,128.35,52.7911]
[1719257553321,8.06197552,128.45,128.36,7.7904]
[1719257553500,41.8569535,128.48,128.38,7.7893]
[1719257553708,6.5135535,128.48,128.39,52.7887]
[1719257553916,8.06022015,128.49,128.39,7.7882]
[1719257554107,8.06022015,128.49,128.4,45.0]
[1719257554710,15.84302015,128.49,128.4,45.0]
[1719257555025,8.06022015,128.49,128.29,38.9714]
[1719257555231,7.7868,128.43,128.33,7.792]
[1719257555406,7.7869,128.42,128.32,19.482]
[1719257555602,0.34,128.41,128.32,27.2748]
[1719257556237,0.34,128.41,128.33,7.7921]
[1719257556734,0.17,128.4,128.33,7.7921]
[1719257557044,22.63740927,128.48,128.34,45.0]
[1719257557045,3.17780927,128.48,128.34,45.0]
[1719257557245,7.7844,128.47,128.37,7.7898]
[1719257557558,7.7847,128.46,128.38,45.0]
[1719257557945,7.7847,128.46,128.37,45.0]
[1719257558122,7.7847,128.46,128.36,19.4758]
[1719257558440,7.7858,128.44,128.34,7.7916]
[1719257558615,0.17,128.43,128.35,45.0]
[1719257558824,0.17,128.43,128.35,64.4774]
[1719257559206,0.17,128.42,128.35,64.4774]
[1719257559508,0.17,128.42,128.35,72.2682]
[1719257559725,0.17,128.42,128.37,7.7898]
[1719257561428,7.7833,128.48,128.38,52.7891]
[1719257561620,0.17,128.47,128.38,52.7891]
[1719257562217,0.17,128.47,128.31,21.794]
[1719257562218,27.73,128.47,128.31,21.794]
[1719257562430,7.7867,128.43,128.33,7.7923]
[1719257562635,0.17,128.42,128.33,7.7923]
[1719257562935,45.34,128.42,128.33,7.7923]
[1719257563109,0.34,128.42,128.35,7.7908]
[1719257563605,0.34,128.42,128.36,45.0]
[1719257566716,8.06407506,128.47,128.37,7.7895]
[1719257566926,8.06407506,128.47,128.4,19.4703]
[1719257567234,8.06407506,128.47,128.38,19.4734]
[1719257567235,7.7841,128.47,128.38,19.4734]
[1719257567415,7.7845,128.46,128.39,45.0]
[1719257567742,14.3689973,128.5,128.37,7.7898]
[1719257567743,7.7842,128.47,128.37,7.7898]
[1719257567917,7.7842,128.47,128.38,45.0]
[1719257568123,14.3689973,128.5,128.39,0.17]
[1719257568311,7.7808,128.53,128.43,7.7859]
[1719257568710,7.7808,128.53,128.44,45.0]
[1719257569333,8.06056659,128.54,128.43,45.0]
[1719257569512,7.781,128.52,128.43,45.0]
[1719257570736,7.7825,128.5,128.39,47.2594]
[1719257570914,19.4507,128.53,128.39,39.4711]
[1719257571310,7.7824,128.5,128.4,7.788]
[1719257571536,7.7824,128.5,128.41,20.0]
[1719257571724,0.34,128.49,128.41,39.4684]
[1719257572043,0.34,128.49,128.41,47.2557]
[1719257572232,0.17,128.48,128.42,45.0]
[1719257572569,0.34,128.5,128.41,20.0]
[1719257572570,7.7827,128.49,128.41,20.0]
[1719257572740,0.34,128.48,128.36,22.6362]
[1719257573038,0.34,128.5,128.37,20.0]
[1719257573230,8.1225,128.5,128.4,27.2568]
[1719257573435,0.34,128.5,128.37,39.4737]
[1719257573732,7.7829,128.49,128.39,7.7883]
[1719257573935,0.34,128.48,128.4,52.788]
[1719257574112,0.17,128.47,128.4,52.788]
[1719257574310,0.17,128.48,128.4,52.788]
[1719257574510,0.17,128.49,128.4,52.788]
[1719257574735,7.9527,128.49,128.4,45.0]
[1719257574939,0.17,128.48,128.4,52.788]
[1719257575113,0.17,128.49,128.4,52.788]
[1719257575640,7.7838,128.48,128.37,20.0]
[1719257575805,0.34,128.47,128.37,20.0]
[1719257576011,0.34,128.47,128.38,7.789]
[1719257576529,0.34,128.47,128.37,20.0]
[1719257576736,8.1243,128.47,128.37,20.0]
[1719257576932,7.7847,128.46,128.36,42.1115]
[1719257577135,0.34,128.45,128.37,52.7898]
[1719257577439,0.17,128.44,128.37,52.7898]
[1719257577634,0.17,128.45,128.37,52.7898]
[1719257578058,7.9541,128.47,128.38,19.473]
[1719257578059,0.17,128.46,128.38,19.473]
[1719257578341,7.7824,128.5,128.4,7.7878]
[1719257578544,7.7824,128.5,128.41,45.0]
[1719257578744,3.17780927,128.53,128.41,45.0]
[1719257579050,15.84601204,128.52,128.42,7.7865]
[1719257579240,15.84601204,128.52,128.43,45.0]
[1719257579547,7.7819,128.51,128.43,45.0]
[1719257579745,15.84561204,128.52,128.42,45.0]
[1719257580073,7.7815,128.51,128.42,45.0]
[1719257580245,0.17,128.5,128.42,45.0]
[1719257581245,0.17,128.5,128.42,52.7865]
[1719257581449,45.34,128.51,128.42,52.7865]
[1719257581841,45.34,128.51,128.43,7.7863]
[1719257582035,53.1215,128.51,128.42,52.7867]
[1719257582343,7.7828,128.49,128.39,7.7883]
[1719257582648,45.34,128.51,128.38,19.4722]
[1719257582649,0.34,128.48,128.38,19.4722]
[1719257582818,0.17,128.47,128.39,27.7885]
[1719257583146,0.17,128.47,128.39,20.0]
[1719257583520,7.7846,128.46,128.36,30.4266]
[1719257583721,8.1251,128.45,128.35,27.2677]
[1719257583951,7.7863,128.43,128.34,263.70872225]
[1719257584247,8.1271,128.42,128.34,255.91712225]
[1719257584753,0.34,128.42,128.32,19.4822]
[1719257584919,7.7885,128.4,128.3,7.7936]
[1719257585123,8.1289,128.39,128.29,41.5375]
[1719257585440,0.17,128.38,128.29,41.5375]
[1719257585620,0.17,128.38,128.3,7.794]
[1719257586156,0.34,128.39,128.3,7.794]
[1719257587253,0.34,128.39,128.27,255.91712225]
[1719257587439,14.19173552,128.45,128.35,7.791]
[1719257587751,33.19343508,128.49,128.3,38.9705]
[1719257587946,7.788,128.41,128.31,65.0]
[1719257588121,38.9215,128.47,128.31,65.0]
[1719257588317,7.7881,128.4,128.31,65.0]
[1719257588540,19.4645,128.44,128.31,64.4831]
[1719257588740,45.34,128.43,128.31,45.0]
[1719257589040,7.7882,128.4,128.31,45.0]
[1719257589246,45.34,128.43,128.31,45.0]
[1719257589247,0.34,128.39,128.31,45.0]
[1719257589439,0.17,128.39,128.31,45.0]
[1719257589742,45.17,128.43,128.34,7.7914]
[1719257589743,8.07791366,128.43,128.34,7.7914]
[1719257589947,5.64343508,128.46,128.35,45.0]
[1719257590336,13.72042001,128.46,128.35,45.0]
[1719257590525,13.72042001,128.46,128.31,19.4829]
[1719257590526,19.4632,128.45,128.31,19.4829]
[1719257590727,7.788,128.41,128.32,45.0]
[1719257590928,7.7871,128.42,128.32,45.0]
[1719257591128,21.50502001,128.46,128.32,45.0]
[1719257591455,7.7852,128.45,128.35,27.2685]
[1719257591668,7.7852,128.45,128.36,45.0]
[1719257591947,7.7851,128.45,128.36,45.0]
[1719257592156,8.07698493,128.46,128.36,45.0]
[1719257592157,7.7857,128.44,128.36,45.0]
[1719257592653,7.7853,128.45,128.36,45.0]
[1719257593022,22.42741972,128.46,128.36,52.7903]
[1719257593224,8.1253,128.45,128.36,45.0]
[1719257593642,7.7857,128.44,128.36,45.0]
[1719257593858,8.1264,128.43,128.33,27.7922]
[1719257594033,7.787,128.42,128.34,45.0]
[1719257594234,0.34,128.41,128.34,45.0]
[1719257595960,0.34,128.41,128.34,64.4793]
[1719257596137,0.17,128.41,128.34,64.4793]
[1719257596344,0.17,128.41,128.36,7.7904]
[1719257596539,0.17,128.41,128.37,45.0]
[1719257596953,0.17,128.41,128.36,45.0]
[1719257597667,7.7904,128.37,128.29,21.6945]
[1719257597952,0.17,128.36,128.27,19.49]
[1719257598254,0.17,128.36,128.27,27.2855]
[1719257598950,0.17,128.36,128.28,7.7953]
[1719257599157,0.34,128.37,128.27,19.49]
[1719257599943,0.34,128.37,128.29,7.7948]
[1719257600253,0.17,128.36,128.3,45.0]
[1719257600658,8.1294,128.38,128.3,45.0]
[1719257600838,0.34,128.38,128.29,52.7947]
[1719257601444,8.1294,128.38,128.29,45.0]
[1719257601640,8.13585619,128.4,128.3,22.486]
[1719257601840,44.557435,128.5,128.36,19.4759]
[1719257602048,78.46305354,128.5,128.36,19.4759]
[1719257602253,7.7851,128.45,128.36,19.4759]
[1719257602657,7.7859,128.44,128.34,7.7916]
[1719257602842,7.7879,128.41,128.31,72.7932]
[1719257603042,7.7868,128.43,128.33,7.7923]
[1719257603341,0.17,128.42,128.34,45.0]
[1719257603951,7.7833,128.48,128.38,27.2621]
[1719257604158,7.7839,128.47,128.38,27.2621]
[1719257604435,7.7839,128.47,128.37,7.7897]
[1719257605244,7.7845,128.46,128.36,7.7903]
[1719257605542,14.07987959,128.5,128.4,7.788]
[1719257605743,14.07987959,128.5,128.41,45.0]
[1719257605951,14.07987959,128.5,128.39,19.4706]
[1719257605952,7.7829,128.49,128.39,19.4706]
[1719257606158,7.7822,128.5,128.4,45.0]
[1719257606353,7.7827,128.49,128.4,45.0]
[1719257606560,7.7833,128.48,128.4,45.0]
[1719257607135,7.7833,128.48,128.38,7.7891]
[1719257607340,0.17,128.47,128.39,45.0]
[1719257607649,0.34,128.47,128.39,45.0]
[1719257608246,0.34,128.47,128.4,7.7877]
[1719257608463,0.34,128.47,128.41,45.0]
[1719257609153,8.13099539,128.51,128.41,45.0]
[1719257609343,6.3200006,128.53,128.41,45.0]
[1719257609540,6.3200006,128.53,128.43,7.7862]
[1719257609541,7.7807,128.53,128.43,7.7862]
[1719257609744,7.7807,128.53,128.44,45.0]
[1719257609745,15.90982367,128.53,128.44,45.0]
[1719257609959,7.7809,128.52,128.44,45.0]
[1719257610157,7.7809,128.52,128.43,45.0]
[1719257610764,7.7818,128.51,128.38,38.9444]
[1719257610964,7.7825,128.5,128.4,19.47]
[1719257611258,0.34,128.49,128.37,19.4737]
[1719257611462,8.1228,128.49,128.39,7.7886]
[1719257611658,0.34,128.49,128.39,19.4709]
[1719257611972,0.17,128.48,128.41,27.256]
[1719257614458,7.7784,128.56,128.46,45.0]
[1719257614867,7.7791,128.55,128.46,45.0]
[1719257615054,7.7786,128.56,128.46,45.0]
[1719257615472,7.7786,128.56,128.46,52.7844]
[1719257615782,0.34,128.55,128.46,52.7844]
[1719257616145,0.34,128.55,128.42,41.8378]
[1719257616518,0.17,128.54,128.43,65.0]
[1719257616785,64.7868,128.56,128.42,41.8378]
[1719257617397,7.7808,128.52,128.42,49.6243]
[1719257617549,0.34,128.51,128.42,49.6243]
[1719257617750,0.34,128.51,128.43,7.7861]
[1719257618265,0.17,128.5,128.44,45.0]
[1719257618656,8.1208,128.52,128.43,45.0]
[1719257619045,7.7816,128.51,128.43,45.0]
[1719257619370,0.34,128.5,128.42,52.7868]
[1719257619550,0.34,128.5,128.42,45.0]
[1719257619970,8.1221,128.5,128.41,19.4685]
[1719257620381,7.7829,128.49,128.39,7.7886]
[1719257620716,8.1237,128.48,128.38,33.9118]
[1719257620982,0.17,128.47,128.38,33.9118]
[1719257621276,0.17,128.47,128.4,19.4697]
[1719257621579,0.17,128.47,128.42,19.4672]
[1719257621756,0.17,128.47,128.43,45.0]
[1719257622090,0.17,128.47,128.38,6.6502]
[1719257622091,0.17,128.47,128.38,26.1235]
[1719257622325,0.17,128.47,128.39,52.7885]
[1719257622455,0.34,128.48,128.4,7.7879]
[1719257622656,0.17,128.47,128.41,45.0]
[1719257622871,0.34,128.47,128.39,45.0]
[1719257623084,0.34,128.47,128.41,7.7875]
[1719257623391,6.49535381,128.51,128.43,7.7863]
[1719257623559,7.7806,128.53,128.44,45.0]
[1719257624267,7.781,128.52,128.44,45.0]
[1719257624480,7.781,128.52,128.43,45.0]
[1719257624659,0.17,128.51,128.43,45.0]
[1719257624857,0.34,128.51,128.43,45.0]
[1719257625425,8.12967379,128.53,128.45,7.7848]
[1719257625577,6.57382022,128.54,128.46,72.2454]
[1719257625791,7.7786,128.56,128.47,45.0]
[1719257626093,7.7786,128.56,128.47,52.7839]
[1719257626253,7.7788,128.56,128.47,45.0]
[1719257626455,7.7798,128.54,128.44,7.7855]
[1719257626777,7.7799,128.54,128.45,45.0]
[1719257627176,7.7799,128.54,128.45,52.785]
[1719257627678,0.34,128.53,128.45,52.785]
[1719257627861,0.17,128.52,128.45,52.785]
[1719257628178,0.34,128.54,128.45,52.785]
[1719257628559,8.1196,128.54,128.45,52.785]
[1719257629673,0.34,128.54,128.47,7.7833]
[1719257629881,0.34,128.54,128.48,45.0]
[1719257631089,0.34,128.54,128.47,45.0]
[1719257631253,0.34,128.55,128.47,52.7838]
[1719257631485,0.34,128.55,128.47,45.0]
[1719257632055,7.7797,128.54,128.47,45.0]
[1719257632264,0.34,128.53,128.47,45.0]
[1719257632470,0.17,128.53,128.46,45.0]
[1719257632770,0.17,128.53,128.46,52.7844]
[1719257632977,7.9499,128.54,128.44,33.4872]
[1719257633166,0.17,128.53,128.45,7.7848]
[1719257633453,0.17,128.53,128.45,7.7849]
[1719257633769,8.1197,128.54,128.44,33.4871]
[1719257633994,0.34,128.54,128.41,41.6182]
[1719257634329,0.34,128.54,128.41,14.3638]
[1719257634330,7.7828,128.49,128.41,14.3638]
[1719257634481,0.34,128.48,128.41,14.3638]
[1719257634656,0.34,128.48,128.41,6.5846]
[1719257635091,0.34,128.48,128.39,7.7886]
[1719257635701,0.34,128.48,128.35,19.4767]
[1719257635927,0.34,128.48,128.34,22.7129]
[1719257635928,0.17,128.47,128.34,22.7129]
[1719257636062,7.7858,128.44,128.34,30.5045]
[1719257636318,0.34,128.43,128.34,49.9836]
[1719257636528,0.34,128.43,128.35,7.7911]
[1719257636867,0.17,128.42,128.35,7.7911]
[1719257637082,8.1259,128.44,128.34,49.9836]
[1719257637296,0.34,128.44,128.35,7.7911]
[1719257637696,0.34,128.44,128.36,45.0]
[1719257639282,8.1261,128.44,128.36,45.0]
[1719257639494,8.1261,128.44,128.35,45.0]
[1719257639985,0.34,128.44,128.35,52.7909]
[1719257640304,0.34,128.44,128.38,7.7893]
[1719257640473,0.34,128.44,128.38,19.4729]
[1719257640737,0.34,128.44,128.38,27.262]
[1719257640885,0.17,128.44,128.38,27.262]
[1719257641281,0.17,128.44,128.39,45.0]
[1719257641711,6.31441283,128.48,128.41,7.787]
[1719257641999,15.91081534,128.51,128.41,7.787]
[1719257642390,8.12931534,128.51,128.42,7.7869]
[1719257642584,8.12931534,128.51,128.43,45.0]
[1719257642997,15.91081534,128.51,128.43,45.0]
[1719257643189,7.7843,128.47,128.37,27.2631]
[1719257643380,14.66784391,128.51,128.39,19.4717]
[1719257643779,45.34,128.5,128.39,19.4717]
[1719257644288,0.17,128.5,128.35,38.9544]
[1719257644485,6.53852857,128.51,128.42,7.7869]
[1719257644749,7.7813,128.52,128.43,45.0]
[1719257646008,165.67541659,128.64,128.43,64.4656]
[1719257646009,7.7796,128.55,128.43,64.4656]
[1719257646194,6.42208003,128.55,128.43,64.4656]
[1719257646399,27.57224846,128.57,128.43,64.4656]
[1719257646699,7.7806,128.53,128.43,72.2515]
[1719257647019,27.57224846,128.57,128.44,7.7856]
[1719257647020,7.7798,128.54,128.44,7.7856]
[1719257647303,0.34,128.53,128.45,45.0]
[1719257647806,7.7816,128.51,128.44,45.0]
[1719257648143,0.34,128.5,128.43,45.0]
[1719257648672,0.17,128.49,128.43,45.0]
[1719257648898,0.34,128.51,128.43,45.0]
[1719257649108,0.34,128.51,128.43,52.7862]
[1719257649288,0.34,128.52,128.44,7.7856]
[1719257649486,0.17,128.5,128.45,7.785]
[1719257649811,0.17,128.52,128.46,45.0]
[1719257649981,0.17,128.52,128.46,52.7841]
[1719257651311,8.12704846,128.57,128.51,7.7813]
[1719257651525,7.7758,128.61,128.52,45.0]
[1719257651906,7.7758,128.61,128.51,45.0]
[1719257652412,7.7761,128.6,128.51,45.0]
[1719257652824,8.1227879,128.63,128.52,19.4514]
[1719257653022,15.8970879,128.63,128.53,52.78]
[1719257653207,7.7751,128.62,128.53,45.0]
[1719257654124,7.7754,128.61,128.53,45.0]
[1719257654304,7.9461,128.6,128.49,19.4556]
[1719257654601,0.17,128.59,128.5,65.0]
[1719257655415,0.17,128.59,128.51,7.781]
[1719257655606,0.17,128.59,128.52,45.0]
[1719257655913,0.34,128.6,128.52,52.7808]
[1719257656104,14.51257138,128.63,128.52,45.0]
[1719257656303,7.7754,128.61,128.52,45.0]
[1719257656518,7.7754,128.61,128.45,6.3266]
[1719257656519,27.55,128.61,128.45,6.3266]
[1719257656716,27.55,128.61,128.43,271.29292225]
[1719257656717,46.9948,128.57,128.43,15.3758]
[1719257657032,7.7798,128.54,128.44,7.7855]
[1719257657218,7.7778,128.57,128.47,7.7836]
[1719257657429,0.17,128.56,128.49,7.7826]
[1719257657724,0.17,128.56,128.48,27.2407]
[1719257657905,0.17,128.57,128.45,19.4617]
[1719257658109,7.779,128.56,128.45,27.2464]
[1719257658421,0.17,128.57,128.47,19.4596]
[1719257658422,0.17,128.55,128.47,19.4596]
[1719257658612,0.17,128.57,128.47,19.4596]
[1719257658798,0.17,128.57,128.5,7.782]
[1719257658992,0.34,128.58,128.46,19.4599]
[1719257659202,0.17,128.57,128.46,27.2443]
[1719257659498,45.34,128.59,128.46,19.4599]
[1719257659715,45.34,128.59,128.43,15.3758]
[1719257659716,45.34,128.59,128.43,42.6265]
[1719257659931,7.7795,128.55,128.44,20.0]
[1719257660095,0.34,128.54,128.44,20.0]
[1719257660317,0.34,128.54,128.45,7.7847]
[1719257660910,0.34,128.54,128.46,45.0]
[1719257661528,45.34,128.54,128.4,39.70564946]
[1719257661724,7.7822,128.5,128.4,47.49334946]
[1719257662026,0.34,128.49,128.4,39.70564946]
[1719257662603,0.34,128.49,128.42,7.7868]
[1719257662801,8.13003233,128.53,128.43,52.7862]
[1719257662802,0.17,128.48,128.43,52.7862]
[1719257663005,0.34,128.5,128.43,52.7862]
[1719257663233,0.34,128.5,128.43,45.0]
[1719257663438,0.17,128.5,128.43,45.0]
[1719257663603,0.34,128.51,128.43,45.0]
[1719257663804,0.34,128.51,128.43,52.786]
[1719257664032,0.34,128.52,128.43,52.786]
[1719257664403,0.34,128.52,128.43,45.0]
[1719257664632,7.7824,128.5,128.4,23.1635]
[1719257664821,0.34,128.49,128.41,45.0]
[1719257665605,0.34,128.49,128.4,15.3758]
[1719257665823,7.7835,128.48,128.38,7.7892]
[1719257666043,0.34,128.47,128.38,7.7892]
[1719257666760,0.34,128.47,128.39,7.7886]
[1719257666931,0.17,128.46,128.4,7.7881]
[1719257667142,0.34,128.48,128.41,45.0]
[1719257667443,0.17,128.48,128.41,45.0]
[1719257667936,0.17,128.48,128.4,45.0]
[1719257668242,0.17,128.48,128.4,52.7881]
[1719257668629,0.34,128.49,128.4,52.7881]
[1719257669826,8.1227,128.49,128.4,45.0]
[1719257670944,0.34,128.49,128.36,41.0931]
[1719257671138,7.7855,128.45,128.34,263.70832225]
[1719257671358,0.34,128.44,128.35,20.0]
[1719257671937,0.34,128.44,128.37,19.4746]
[1719257672134,0.34,128.44,128.38,7.7893]
[1719257672449,0.34,128.44,128.37,27.2643]
[1719257672745,0.34,128.44,128.38,45.0]
[1719257673154,0.17,128.44,128.38,45.0]
[1719257673508,0.17,128.44,128.39,7.7883]
[1719257673720,0.17,128.44,128.4,45.0]
[1719257676048,0.17,128.44,128.39,45.0]
[1719257676718,0.34,128.45,128.38,45.0]
[1719257678339,0.17,128.45,128.38,45.0]
[1719257679225,0.17,128.45,128.39,7.7886]
[1719257679537,0.17,128.45,128.4,45.0]
[1719257679716,0.34,128.45,128.4,45.0]
[1719257680463,19.4505,128.54,128.4,45.0]
[1719257680748,7.7795,128.56,128.38,22.0778]
[1719257680749,7.781,128.52,128.42,27.2535]
[1719257680934,7.781,128.52,128.43,52.7862]
[1719257681117,7.781,128.52,128.43,45.0]
[1719257682224,0.17,128.51,128.43,45.0]
[1719257683247,0.17,128.51,128.43,52.7863]
[1719257683460,0.34,128.51,128.44,7.7855]
[1719257683624,0.17,128.52,128.44,7.7855]
[1719257684738,0.34,128.52,128.44,7.7855]
[1719257684943,0.34,128.52,128.43,52.7861]
[1719257686051,8.1213,128.52,128.43,45.0]
[1719257686335,0.34,128.52,128.43,45.0]
[1719257686639,8.1211,128.52,128.43,45.0]
[1719257687359,7.782,128.51,128.41,7.787]
[1719257687560,0.34,128.5,128.4,19.4689]
[1719257687724,0.17,128.5,128.42,7.7868]
[1719257688066,0.34,128.5,128.42,7.7868]
[1719257689557,8.1223,128.5,128.4,27.2565]
[1719257689749,23.93,128.5,128.39,7.7885]
[1719257689921,23.93,128.5,128.39,19.4713]
[1719257689922,7.7827,128.49,128.39,19.4713]
[1719257690268,0.34,128.48,128.4,7.7879]
[1719257690437,0.17,128.47,128.4,7.7879]
[1719257690629,0.17,128.48,128.4,7.7879]
[1719257690825,8.1237,128.48,128.39,19.4713]
[1719257691030,8.1235,128.48,128.38,29.8666]
[1719257691550,8.1235,128.48,128.39,7.7887]
[1719257691749,0.34,128.48,128.39,7.7887]
[1719257693247,0.34,128.48,128.39,27.2605]
[1719257693553,7.7848,128.46,128.36,275.39282225]
[1719257693753,0.34,128.45,128.36,283.18302225]
[1719257694739,0.34,128.45,128.37,7.7897]
[1719257695143,0.17,128.44,128.37,7.7897]
[1719257695357,0.34,128.46,128.37,7.7897]
[1719257697147,0.34,128.46,128.37,19.4734]
[1719257697352,0.34,128.46,128.38,7.7891]
[1719257697848,0.34,128.46,128.37,27.2631]